Cogmind - Beta 14 @@@ ROGUE MODE // 2024.11.11 @ 08:33:27 Player: Tereza Result: Self-destructed Performance ------------- Evolutions (1) 500 Regions Visited (5) 1000 Robots Destroyed (47) 235 Value Destroyed (1041) 1041 Prototype IDs (1) 20 Alien Tech Used (0) 0 Bonus (0) 0 TOTAL SCORE: 2796 Bonus ------- None Cogmind --------- Core Integrity 8/400 Matter 251/300 Energy 100/100 System Corruption 4% Temperature Cool (0) Movement Core (1400) Ox27 Location -9/Exiles Parts ------- > --- POWER (1) -------- (None) > --- PROPULSION (2) --- (None) > --- UTILITY (4) ------ Cooling System Huge Storage Unit > --- WEAPON (2) ------- (None) > --- INVENTORY (25) --- Improved Ion Engine Light Treads Light Treads Light Treads Light Treads Light Treads Armored Wheel Medium Matter Pod (100) Sensor Array Seismic Detector Seismic Detector ECM Suite Medium Armor Plating Hacking Suite Hacking Suite Spread Laser Spread Laser Spread Laser Improved Assault Rifle Improved Assault Rifle Improved Assault Rifle Rocket Launcher Rocket Launcher Rocket Launcher Datajack Peak State ------------ > --- POWER ------------ Light Ion Engine > --- PROPULSION ------- Light Treads Armored Wheel > --- UTILITY ---------- Cooling System Huge Storage Unit Seismic Detector Light Armor Plating > --- WEAPON ----------- Heavy Assault Rifle Improved Assault Rifle > --- INVENTORY -------- Light Ion Engine Light Treads Light Treads Light Treads Light Treads Light Treads Armored Wheel Medium Matter Pod Sensor Array Seismic Detector Seismic Detector ECM Suite ECM Suite Hacking Suite Beam Rifle Spread Laser Spread Laser Spread Laser Improved Assault Rifle Improved Assault Rifle Rocket Launcher Rocket Launcher Rocket Launcher Rocket Launcher Datajack [Rating: 18] Favorites ----------- Power Light Ion Engine Engine Light Ion Engine Propulsion Light Treads Treads Light Treads Wheel Armored Wheel Utility Seismic Detector Device Seismic Detector Storage Huge Storage Unit Protection Light Armor Plating Weapon Heavy Assault Rifle Energy Gun Beam Rifle Ballistic Gun Heavy Assault Rifle Launcher Rocket Launcher Build | -11 -10 -10 -9 -9 -9 ------- Run | Yrd Mat Min Mat Min Exi Slots Evolved 2 | . . . 2 . . Power . | . . . . . . Propulsion . | . . . . . . Utility 2 | . . . 2 . . Weapon . | . . . . . . Parts Attached 28 | 6 6 . 14 1 1 Power 3 | 1 . . 2 . . Engine 3 | 1 . . 2 . . Core . | . . . . . . Reactor . | . . . . . . Propulsion 7 | 2 1 . 3 1 . Treads 4 | 2 . . 2 . . Leg . | . . . . . . Wheel 3 | . 1 . 1 1 . Hover . | . . . . . . Flight . | . . . . . . Utility 9 | 1 3 . 5 . . Device 4 | . 1 . 3 . . Storage 3 | 1 2 . . . . Processor . | . . . . . . Hackware . | . . . . . . Protection 2 | . . . 2 . . Artifact . | . . . . . . Weapon 9 | 2 2 . 4 . 1 Energy Gun 2 | . . . 2 . . Energy Cannon . | . . . . . . Ballistic Gun 6 | 2 2 . 2 . . Ballistic Cannon . | . . . . . . Launcher 1 | . . . . . 1 Special Weapon . | . . . . . . Impact Weapon . | . . . . . . Slashing Weapon . | . . . . . . Piercing Weapon . | . . . . . . Special Melee Weapon . | . . . . . . Unidentified Prototypes 1 | . . . 1 . . Parts Lost 15 | . . . 8 . 7 Power 2 | . . . 1 . 1 Propulsion 4 | . . . 2 . 2 Utility 4 | . . . 2 . 2 Weapon 5 | . . . 3 . 2 Highest Loss Streak 7 | . . . 3 . 7 To Critical Strikes 1 | . . . . . 1 Average Slot Usage (%) 97 | . 98 100 95 100 94 Engine 11 | . 14 14 10 11 9 Treads 15 | . 22 14 10 11 11 Wheel 9 | . 5 14 11 11 11 Device 18 | . 12 14 22 22 20 Storage 12 | . 14 14 11 11 11 Protection 4 | . . . 6 11 8 Energy Gun 1 | . . . 2 . . Ballistic Gun 23 | . 28 28 19 22 20 Peak Build Rating 18 | 6 13 13 18 18 18 Average Rating 13 | 4 9 12 15 18 17 On Entrance 11 | . 6 13 13 18 18 Naked Turns . | . . . . . . Heaviest Build 99 | 11 90 90 99 95 95 Greatest Support 40 | 40 40 16 16 12 12 Greatest Overweight (x) 7 | 3 5 5 7 7 7 Average Overweight (x) 4 | . 1 5 6 7 7 Largest Inventory Capacity 25 | 8 25 25 25 25 25 Average Capacity 21 | 7 15 25 25 25 25 Most Carried 25 | 6 25 25 25 25 25 Average Carried 20 | 4 13 24 24 24 25 Final Capacity 25 | 8 25 25 25 25 25 Final Carried 25 | 6 25 25 25 25 25 Class Distribution -------------------- 100% | Mutant Dominant Class ---------------- Mutant | -10/Materials Mutant | -10/Mines Mutant | -9/Materials Mutant | -9/Mines Mutant | -9/Exiles Resources | -11 -10 -10 -9 -9 -9 ----------- Run | Yrd Mat Min Mat Min Exi Matter Collected 1228 | 214 308 . 582 124 . Remotely . | . . . . . . Salvage Created 1438 | . 411 . 932 84 11 Parts 106 | . 32 . 70 4 . Haulers Intercepted 3 | . . . 3 . . Recyclers Shooed 2 | . 1 . 1 . . Parts Field Recycled . | . . . . . . Retrieved Matter . | . . . . . . Parts Self-Destructed . | . . . . . . Prevented . | . . . . . . Kills | -11 -10 -10 -9 -9 -9 ------- Run | Yrd Mat Min Mat Min Exi Combat Hostiles Destroyed 36 | . 11 . 19 2 4 Guns 32 | . 11 . 19 2 . AOE 4 | . . . . . 4 Classes Destroyed 10 | . 4 . 5 . 1 Worker 3 | . . . 3 . . Hauler 3 | . . . 3 . . Recycler 1 | . . . 1 . . Operator 2 | . 1 . 1 . . Watcher 6 | . 3 . 3 . . Swarmer 12 | . 4 . 8 . . Grunt 13 | . 7 . 4 2 . Brawler 1 | . . . 1 . . Sentry 6 | . . . 6 . . Assembled 4 | . . . . . 4 Best Kill Streak 7 | . 3 . 7 1 4 Combat Bots Only 7 | . 3 . 7 1 4 Max Kills in Single Turn 2 | . 1 . 2 1 2 Gunslinging . | . . . . . . Exploded 2 | . . . . . 2 Melee . | . . . . . . Uniques/NPCs Destroyed . | . . . . . . Combat | -11 -10 -10 -9 -9 -9 -------- Run | Yrd Mat Min Mat Min Exi Hostile Shots Fired 228 | . 43 . 127 11 47 Missed 59 | . 10 . 35 2 12 Damage Taken 2132 | . 317 . 949 100 766 Core 451 | . 59 . 164 . 228 Absorbed by Shields . | . . . . . . Core Remaining (%) 88 | 100 . 76 . . . Volleys Fired 137 | . 51 . 74 7 5 Largest 2 | . 2 . 2 2 2 Hottest 88 | . 46 . 88 46 56 Shots Fired 273 | . 102 . 148 14 9 Gun 269 | . 102 . 148 14 5 Cannon . | . . . . . . Launcher 4 | . . . . . 4 Special . | . . . . . . Kinetic 245 | . 102 . 124 14 5 Thermal 24 | . . . 24 . . Explosive 4 | . . . . . 4 Electromagnetic . | . . . . . . Robot Hit Streak 10 | . 10 . 9 4 2 Robot Miss Streak 6 | . 4 . 6 2 2 Penetration Max . | . . . . . . Secondary Targets 3 | . . . 3 . . Max Gunslinging Chain 1 | . . . 1 . . Shots Hit Robots 162 | . 59 . 90 8 5 Core Hits 87 | . 25 . 51 3 8 Critical Kills 2 | . 1 . . 1 . Critical Parts Destroyed 1 | . . . 1 . . Critical Strikes 3 | . 1 . 1 1 . Destroy 3 | . 1 . 1 1 . Melee Attacks . | . . . . . . Impact . | . . . . . . Slashing . | . . . . . . Piercing . | . . . . . . Sneak Attacks . | . . . . . . Combat Hostiles . | . . . . . . Follow-up Attacks . | . . . . . . Damage Inflicted 2812 | . 672 . 1505 124 511 Guns 2344 | . 672 . 1505 124 43 Cannons . | . . . . . . Explosions 468 | . . . . . 468 Melee . | . . . . . . Ramming . | . . . . . . Kinetic 2056 | . 672 . 1217 124 43 Thermal 288 | . . . 288 . . Explosive 468 | . . . . . 468 Electromagnetic . | . . . . . . Impact . | . . . . . . Slashing . | . . . . . . Piercing . | . . . . . . Highest Corruption 4 | . . . 4 4 4 Average Corruption 3 | . . . 3 4 4 Corruption Purged . | . . . . . . Corruption Blocked . | . . . . . . Effects 39 | . . . 16 21 2 Message Errors 11 | . . . 6 5 . Matter Fused 9 | . . . 2 7 . Heat Flow Errors 6 | . . . 2 3 1 Energy Discharges 5 | . . . 3 2 . Parts Rejected 1 | . . . . 1 . Data Loss (minor) 1 | . . . . 1 . Data Loss (major) 3 | . . . 2 1 . Misfires 2 | . . . 1 . 1 Alerts 1 | . . . . 1 . Overload Shots . | . . . . . . Overflow Damage 50 | . . . . . 50 Projectiles . | . . . . . . Explosions 50 | . . . . . 50 Melee . | . . . . . . Knockbacks . | . . . . . . Impact . | . . . . . . Kinetic . | . . . . . . Secondary . | . . . . . . Self-Inflicted Damage 127 | . . . . . 127 Shots 3 | . . . . . 3 Rammed . | . . . . . . Targets Rammed . | . . . . . . Kicked . | . . . . . . Crushed . | . . . . . . Highest Temperature 317 | . 12 . 317 162 74 Average Temperature 81 | . 6 . 99 69 53 Received Heat Transfer 465 | . 126 . 225 54 60 Siege Activations . | . . . . . . Robots Corrupted . | . . . . . . Combat Hostiles . | . . . . . . Parts Fried . | . . . . . . Impact Corruptions . | . . . . . . Robots Melted . | . . . . . . Combat Hostiles . | . . . . . . Parts Melted . | . . . . . . Heat Transferred 421 | . . . 421 . . Parts Sabotaged . | . . . . . . Parts Stolen . | . . . . . . Parts Stripped . | . . . . . . Power Chain Reactions . | . . . . . . Alert | -11 -10 -10 -9 -9 -9 ------- Run | Yrd Mat Min Mat Min Exi Peak Influence 369 | . 241 40 369 122 . Initial 67 | . . 40 15 67 . Average 125 | . 128 40 172 59 . Maximum Alert Level 1 | . 1 . 1 . . Low Security (%) 75 | 100 73 100 59 100 . Level 1 24 | . 26 . 40 . . Level 2 . | . . . . . . Level 3 . | . . . . . . Level 4 . | . . . . . . Level 5 . | . . . . . . High Security . | . . . . . . Max Security . | . . . . . . Squads Dispatched 6 | . 5 . 1 . . Investigation 3 | . 3 . . . . Extermination . | . . . . . . Reinforcement 3 | . 2 . 1 . . Assault . | . . . . . . Garrison . | . . . . . . Intercept . | . . . . . . Searches Triggered . | . . . . . . Construction Impeded . | . . . . . . Haulers Reinforced . | . . . . . . Active Scanning Responses . | . . . . . . Cargo Convoy Interrupts . | . . . . . . Stealth | -11 -10 -10 -9 -9 -9 --------- Run | Yrd Mat Min Mat Min Exi Distress Signals 5 | . 1 . 4 . . Communications Jammed . | . . . . . . Distress Signals . | . . . . . . Times Spotted 68 | . 23 . 34 3 8 Peak Tracking Total 9 | . 4 . 7 2 9 Tactical Retreats 8 | . 3 . 4 1 . Traps | -11 -10 -10 -9 -9 -9 ------- Run | Yrd Mat Min Mat Min Exi Traps Triggered 3 | . 1 . 2 . . Indirectly . | . . . . . . Trap Hack Attempts . | . . . . . . Triggered . | . . . . . . Disarmed . | . . . . . . Reprogrammed . | . . . . . . Reused . | . . . . . . Traps Extracted . | . . . . . . Installed . | . . . . . . Triggered . | . . . . . . Machines | -11 -10 -10 -9 -9 -9 ---------- Run | Yrd Mat Min Mat Min Exi Machines Disabled 4 | . . . 3 . 1 Max in Single Turn 1 | . . . 1 . 1 Machines Repaired . | . . . . . . Machines Dismantled . | . . . . . . Machines Sabotaged . | . . . . . . Overloaded Fab Kills . | . . . . . . Hacking | -11 -10 -10 -9 -9 -9 --------- Run | Yrd Mat Min Mat Min Exi Machines Accessed 9 | . 5 . 4 . . Terminals 9 | . 5 . 4 . . Fabricators . | . . . . . . Repair Stations . | . . . . . . Recycling Units . | . . . . . . Scanalyzers . | . . . . . . Garrison Access . | . . . . . . Total Hacks 27 | . 15 . 12 . . Successful 17 | . 9 . 8 . . Failed 10 | . 6 . 4 . . Catastrophic 1 | . 1 . . . . Database Lockouts . | . . . . . . Manual 26 | . 16 . 10 . . Terminals 27 | . 15 . 12 . . Fabricators . | . . . . . . Repair Stations . | . . . . . . Recycling Units . | . . . . . . Scanalyzers . | . . . . . . Garrison Access . | . . . . . . Terminal Hacks 15 | . 8 . 7 . . Robot Analysis 9 | . 6 . 3 . . Branch Access Points 1 | . 1 . . . . Unreport Threat 1 | . . . 1 . . Dispatch Records 1 | . . . 1 . . Recall Investigation 1 | . 1 . . . . Hauler Manifests 1 | . . . 1 . . Zone Layout 1 | . . . 1 . . Fabricator Hacks . | . . . . . . Repair Station Hacks . | . . . . . . Recycling Unit Hacks . | . . . . . . Scanalyzer . | . . . . . . Garrison Access Hacks . | . . . . . . Unauthorized Hacks 2 | . 1 . 1 . . Terminals 2 | . 1 . 1 . . Botnet 2 | . 1 . 1 . . Fabricators . | . . . . . . Repair Stations . | . . . . . . Recycling Units . | . . . . . . Scanalyzers . | . . . . . . Garrison Access . | . . . . . . Data Cores Recovered . | . . . . . . Used . | . . . . . . Hacking Detections 6 | . 3 . 3 . . Full Trace Events 3 | . 2 . 1 . . Feedback Events . | . . . . . . Feedback Blocked . | . . . . . . Robot Schematics Acquired . | . . . . . . Robots Built . | . . . . . . Authchips . | . . . . . . Time . | . . . . . . Total Robot Build Rating . | . . . . . . Part Schematics Acquired . | . . . . . . Parts Built . | . . . . . . Authchips . | . . . . . . Time . | . . . . . . Total Part Build Rating . | . . . . . . Parts Repaired . | . . . . . . Time . | . . . . . . Parts Recycled . | . . . . . . Recycled Matter . | . . . . . . Retrieved Matter . | . . . . . . Retrieved Components . | . . . . . . Parts Scanalyzed . | . . . . . . Part Schematics Acquired . | . . . . . . Parts Damaged . | . . . . . . Bothacking | -11 -10 -10 -9 -9 -9 ------------ Run | Yrd Mat Min Mat Min Exi Used RIF Installer . | . . . . . . Robots Hacked . | . . . . . . Non-combat . | . . . . . . Combat . | . . . . . . Robot Hacks Applied . | . . . . . . Relay Couplers Released . | . . . . . . Fabnet Peak Effective % . | . . . . . . Robots Rewired . | . . . . . . Allies Hacked . | . . . . . . Hacks Repelled . | . . . . . . Allies | -11 -10 -10 -9 -9 -9 -------- Run | Yrd Mat Min Mat Min Exi Total Allies 1 | . . . . 1 . Largest Group 1 | . . . . 1 . Highest-Rated Group 31 | . . . . 31 . Highest-Rated Ally 31 | . . . . 31 . Total Orders . | . . . . . . Ally Attacks . | . . . . . . Total Damage . | . . . . . . Kills . | . . . . . . Allies Corrupted . | . . . . . . Allies Melted . | . . . . . . Intel | -11 -10 -10 -9 -9 -9 ------- Run | Yrd Mat Min Mat Min Exi Robot Analysis Total 9 | . 6 . 3 . . Derelict Logs Recovered 2 | . . . . 2 . Drone Launches . | . . . . . . Drone Recoveries . | . . . . . . Exploration | -11 -10 -10 -9 -9 -9 ------------- Run | Yrd Mat Min Mat Min Exi Turns Passed 3063 | 70 1012 103 1160 629 89 Spaces Moved 1366 | 35 481 59 449 304 38 Core 13 | 13 . . . . . Treads 313 | 22 291 . . . . Legs . | . . . . . . Wheels 1040 | . 190 59 449 304 38 Hover . | . . . . . . Flight . | . . . . . . Fastest Speed 50 | 50 160 175 175 195 195 Average Speed 181 | 160 165 175 190 195 195 Slowest Speed 200 | 200 175 175 195 195 195 Overloaded Moves . | . . . . . . Propulsion Burnouts . | . . . . . . Robots Hopped . | . . . . . . Cave-ins Triggered . | . . . . . . Exploration Rate (%) 41 | 5 82 27 51 75 10 Regions Visited 5 Branch Regions 3 Pre-discovered Areas 3 | . . . . 3 . Known Exits Taken 1 | . 1 . . . . Unknown Exits Taken 4 | 1 . 1 1 1 . Scrap Searched . | . . . . . . Spaces Dug . | . . . . . . Terrain Destroyed 27 | . . . . . 27 Melee . | . . . . . . Projectile . | . . . . . . AOE 27 | . . . . . 27 Terrain Rammed . | . . . . . . Walls Destroyed . | . . . . . . Machines Disabled . | . . . . . . Actions | -11 -10 -10 -9 -9 -9 --------- Run | Yrd Mat Min Mat Min Exi Total 1714 | 46 608 60 629 327 44 Wait 91 | . 32 . 44 15 . Move 1361 | 34 480 58 448 303 38 Hop . | . . . . . . Pick Up 61 | 6 27 1 26 1 . Fast Attach 11 | 6 1 . 4 . . Attach 9 | . . . 8 1 . Detach . | . . . . . . Swap 9 | . 5 . 3 . 1 Drop 35 | . 12 1 22 . . Fire 137 | . 51 . 74 7 5 Melee . | . . . . . . Ram . | . . . . . . Kick . | . . . . . . Crush . | . . . . . . Escape Stasis . | . . . . . . Rewire . | . . . . . . Trap . | . . . . . . Miscellaneous . | . . . . . . Route ------- -11/Scrapyard -10/Materials (discovered 4 exits: *Mat x3 / *Min) -10/Mines -9/Materials (discovered 3 exits: [*Mat x2] / [*Min]) -9/Mines (discovered 3 exits: [*Mat] / [*Exi] / [*Zio]) -9/Exiles History --------- Turn | Location | Event 28 | -11/Scrapyard | Discovered new exit (range 15) 71 | -11/Scrapyard | Entered Materials 226 | -10/Materials | Discovered new exit (range 3) 313 | -10/Materials | Build established: Mutant 481 | -10/Materials | Discovered new exit (range 11) 936 | -10/Materials | Discovered new exit (range 12) 1006 | -10/Materials | Identified exit to Mines 1083 | -10/Materials | Entered Mines 1162 | -10/Mines | Discovered new exit (range 5) 1169 | -10/Mines | Received a Rocket Launcher from a helpful Derelict 1186 | -10/Mines | Entered Materials 1186 | -9/Materials | Evolved 2 slots: Utility x2 1410 | -9/Materials | Destroyed 7 combat bots 1727 | -9/Materials | Lost 3 parts (1p1n1u) 1827 | -9/Materials | Discovered new exit (range 14) 2150 | -9/Materials | Discovered new exit (range 16) 2309 | -9/Materials | Discovered new exit (range 14) 2346 | -9/Materials | Entered Mines 2351 | -9/Mines | Learned location of Storage (-8) 2352 | -9/Mines | Discovered new exit (range 11) 2590 | -9/Mines | Escorted by a lone wolf Derelict 2920 | -9/Mines | A Derelict revealed a hidden shortcut to a safe place 2966 | -9/Mines | Deemed a non-threat by the Exiles lab entrance 2968 | -9/Mines | Discovered new exit (range 5) 2975 | -9/Mines | Entered Exiles 2975 | -9/Exiles | Accompanied by 1 ally 3026 | -9/Exiles | Met 8R-AWN 3039 | -9/Exiles | Attacked by the Exiles 3057 | -9/Exiles | Core integrity fell below 50% 3063 | -9/Exiles | Core integrity fell below 20% 3064 | -9/Exiles | Self-destructed Last Messages --------------- 03060_ Penetrated by HV Slug. 03060_ HV Slug penetrates Wall. 03060_ Penetrated by HV Slug. 03060_ Critical hit (Destroy). 03060_ Hvy. Assault Rifle destroyed. 03060_ HV Slug penetrates Wall. 03060_ as-81038 destroyed. 03060_ as-52995 destroyed. 03062_ Penetrated by HV Slug. 03062_ HV Slug penetrates Wall. 03062_ Penetrated by HV Slug. 03062_ HV Slug penetrates Wall. 03062_ Machine disabled. 03062_ Arm. Wheel destroyed. 03064_ Rocket Launcher destroyed. 03064_ Lgt. Treads destroyed. 03064_ Penetrated by HV Slug. 03064_ HV Slug penetrates Wall. 03064_ Penetrated by HV Slug. 03064_ HV Slug penetrates Wall. Map ----- +----------------------------------------------------+ | ?????????????????????????????????????????????????? | | ?????????????????????????????????????????????????? | | ?????????????????????????????????????????????????? | | ?????????????????????????????????????????????????? | | ?????????????????????????????????????????????????? | | ?????????????????????????????????????????????????? | | ?????????????????????????????????????????????????? | | ?????????????????????????????????????????????????? | | ?????????????????????????????????????????????????? | | ?????????????????????????????????????????????????? | | ?????????????????????????????????????????????????? | | ?????????????????????????????????????????????????? | | ?????????????????????????????????????????????????? | | ?????????????????????????????????????????????????? | | ?????????????????????????????????????????????????? | | ???????????????????????????????????????# ??????? | | ??????????????????????????????????????# ##????? | | ??????????????????##?????????????????# #????? | | ?????????????????## ##???????????????# #????? | | ????????????????## ####???????????## ?????? | | ????????????????#" ?##???????## #??????? | | ???????????????##" # ##??????# #??????? | | ?????????????### g #????### #???????? | | ?????????????# a ###### #???????? | | ????????????## a "## #????????? | | ????????????# @ * ##???????? | | ????? # * #???????? | | ????? ??# ##??????? | | ?????? ????##" " #; g ###????? | | ???????? ???????#####;###;#;; * ###??? | | ???????? ?????????????## ??? ?##### ##?? | | ????????????????????????? ????#????### #?? | | ?????????????????????????##??????????### #?? | | ???????????????????????????????????????### #?? | | ????????????????????????????????????????#" ##? | | ????????????????????????????????????????#### ## | | ???????????????????????????????????????????# | | ???????????????????????????????????????????## | | ????????????????????????????????????????????### | | ??????????????????????????????????????????????# | | ??????????????????????????????????????????????## | | ???????????????????????????????????????????????### | | ?????????????????????????????????????????????????? | | ?????????????????????????????????????????????????? | | ?????????????????????????????????????????????????? | | ?????????????????????????????????????????????????? | | ?????????????????????????????????????????????????? | | ?????????????????????????????????????????????????? | | ?????????????????????????????????????????????????? | | ?????????????????????????????????????????????????? | +----------------------------------------------------+ Best States ------------- Heat Dissipation 50 Energy Generation 12 Energy Capacity 265 Matter Stores 300 Matter Capacity 300 Sight Range 16 Robot Scan Range 14 Terrain Scan Density 10 ECM Strength 1 Armor Coverage 150 Evasion (%) 40 Recoil Reduction 2 Item Schematics ----------------- None Robot Schematics ------------------ None Fabricated ------------ Nothing Alien Tech Used ----------------- None Achievements -------------- None Challenges ------------ None Game ------ Seed ThrusterSpikedSource Manual? 0 Play Time 00:20:22 Cumulative 108.0 hours Start 2024.11.11 @ 08:06:23 End 2024.11.11 @ 08:33:27 Sessions 1 Manual Loads 0 Difficulty Rogue Special Mode None Game No. 131 Rogue 131 Adventurer 0 Explorer 0 Win Type - Total 1 Types 1/0/0/0/0/0/0/0/0 Lore% 62 Gallery% 53 Achievement% 45 Wizard Run 0 Options --------- Layout 1 ASCII 0 Keyboard 1 Movement Numpad Keybinds 0 Fullscreen 1 Font 24/Smallcaps Map View 50x35 Zoom Use 0% Tactical HUD 1 Map Filters NONE Filters NONE Steam 1 RUN: f797cc17-520b-4d68-8104-4e2e7e6b71c7